Workbook

Sheet Sheet1
A1: Demonstration of effect of 1st and 2nd derivative sharpening on perpendicular drop area measurements of two overlapping exponentially modified Gaussian (EMG) peaks.
A2: Simulated peaks | C2: The simulated data of two EMG peaks are in column A and B (X and Y), rows 9 to 313. Cells B4 - B6 control the peak width, noise, and relative height of peak 2.
A3: peak 2 | B3: 0.2 | D3: % error | E3: Area 1 | F3: Area 2 | G3: Peak 1 true | H3: Peak 2 true | I3: Click buttons to change K1 (1st derivative) and K2 (2nd derivative) weighting factors.
A4: sigma | B4: 100 | D4: Raw | E4: =((SUM(B9:B143)*(A10-A9)-G4))/G4 -> -0.1996202291 | F4: =(SUM(B144:B313)*(A10-A9)-H4)/H4 -> 0.9976418027 | G4: =SUM(AH9:AH313)*(A10-A9) -> 250.6525314 | H4: =$B$3*G4 -> 50.13050628 | I4: K1= | J4: 171.7679118 | L4: The smooth function is defined by the 17 red coefficients in row 5, columns K through AA.
A5: Noise | B5: 0 | D5: Sharp | E5: =((SUM(J9:J143)*(A10-A9)-G4))/G4 -> 0.0002145972631 | F5: =((SUM(J144:J313)*(A11-A10)-H4))/H4 -> 0.0006013242688 | G5: total area | H5: =SUM(J9:J313)*(A10-A9) -> 300.8669717 | I5: K2= | J5: 3468.449027 | L5: -8 | M5: -7 | N5: -6 | O5: -5 | P5: -4 | Q5: -3 | R5: -2 | S5: -1 | T5: 0 | U5: 1 | V5: 2 | W5: 3 | X5: 4 | Y5: 5 | Z5: 6 | AA5: 7 | AB5: 8
A6: lambda | B6: 0.005 | D6: Rs= | E6: =500/(2*B4) -> 2.5 | K6: Smooth coefficients---> | L6: 0 | M6: 0 | N6: 0 | O6: 0 | P6: 0 | Q6: 0 | R6: 0 | S6: 0 | T6: 1 | U6: 0 | V6: 0 | W6: 0 | X6: 0 | Y6: 0 | Z6: 0 | AA6: 0 | AB6: 0
A7: Simulated data | C7: 1st | E7: Smoothed | F7: 2nd | G7: Smoothed | H7: 4th | I7: Smoothed | J7: Sharpened
A8: X | B8: Y | C8: derivative | E8: 1st deriv. | F8: derivative | G8: 2nd deriv. | H8: derivative | I8: 4th deriv. | J8: Signal | AH8: Peak 1, single EMG
A9: 0 | B9: =(($B$4*$B$6*SQRT(PI()/2)*EXP(0.5*($B$4*$B$6)^2-$B$6*(A9-1000))*ERFC((1/SQRT(2))*($B$4*$B$6-((A9-1000)/$B$4))))+$B$3*($B$4*$B$6*SQRT(PI()/2)*EXP(0.5*($B$4*$B$6)^2-$B$6*(A9-1500))*ERFC((1/SQRT(2))*($B$4*$B$6-((A9-1500)/$B$4)))))+$B$5*(RAND()-RAND()+RAND()-RAND()) -> 9.10338683e-24 | C9: 0 | E9: 0 | G9: 0 | J9: =B9-($J$5*G9)+($J$4*E9) -> 9.10338683e-24 | AH9: =(($B$4*$B$6*SQRT(PI()/2)*EXP(0.5*($B$4*$B$6)^2-$B$6*(A9-1000))*ERFC((1/SQRT(2))*($B$4*$B$6-((A9-1000)/$B$4))))) -> 9.10338683e-24
A10: =A9+10 -> 10 | B10: =(($B$4*$B$6*SQRT(PI()/2)*EXP(0.5*($B$4*$B$6)^2-$B$6*(A10-1000))*ERFC((1/SQRT(2))*($B$4*$B$6-((A10-1000)/$B$4))))+$B$3*($B$4*$B$6*SQRT(PI()/2)*EXP(0.5*($B$4*$B$6)^2-$B$6*(A10-1500))*ERFC((1/SQRT(2))*($B$4*$B$6-((A10-1500)/$B$4)))))+$B$5*(RAND()-RAND()+RAND()-RAND()) -> 2.485473386e-23 | C10: =(B10-B9)/(A10-A9) -> 1.575134703e-24 | E10: 0 | F10: =(E11-E9)/(A11-A9) -> 0 | G10: 0 | H10: =(G11-G9)/(A11-A9) -> 0 | J10: =B10-($J$5*G10)+($J$4*E10) -> 2.485473386e-23 | AH10: =(($B$4*$B$6*SQRT(PI()/2)*EXP(0.5*($B$4*$B$6)^2-$B$6*(A10-1000))*ERFC((1/SQRT(2))*($B$4*$B$6-((A10-1000)/$B$4))))) -> 2.485473386e-23
A11: =A10+10 -> 20 | B11: 6.719088722e-23 | C11: =(B11-B10)/(A11-A10) -> 4.233615336e-24 | E11: 0 | F11: 0 | G11: 0 | H11: 0 | J11: 6.719088722e-23 | AH11: 6.719088722e-23
A12: 30 | B12: 1.798487726e-22 | C12: 1.126578854e-23 | E12: 0 | F12: 0 | G12: 0 | H12: 0 | J12: 1.798487726e-22 | AH12: 1.798487726e-22
A13: 40 | B13: 4.76651703e-22 | C13: 2.968029304e-23 | E13: 0 | F13: 0 | G13: 0 | H13: 0 | J13: 4.76651703e-22 | AH13: 4.76651703e-22
A14: 50 | B14: 1.250812268e-21 | C14: 7.741605654e-23 | E14: 0 | F14: 0 | G14: 0 | H14: 0 | J14: 1.250812268e-21 | AH14: 1.250812268e-21
A15: 60 | B15: 3.249983779e-21 | C15: 1.99917151e-22 | E15: 0 | F15: 0 | G15: 0 | H15: 0 | J15: 3.249983779e-21 | AH15: 3.249983779e-21
A16: 70 | B16: 8.361209761e-21 | C16: 5.111225983e-22 | E16: 0 | F16: 0 | G16: 0 | H16: 0 | J16: 8.361209761e-21 | AH16: 8.361209761e-21
A17: 80 | B17: 2.129887763e-20 | C17: 1.293766787e-21 | E17: 0 | F17: 0 | G17: 0 | H17: 0 | J17: 2.129887763e-20 | AH17: 2.129887763e-20
A18: 90 | B18: 5.372109102e-20 | C18: 3.242221339e-21 | E18: =(C10*$L$6+C11*$M$6+C12*$N$6+C13*$O$6+C14*$P$6+C15*$Q$6+C16*$R$6+C17*$S$6+C18*$T$6+C19*$U$6+C20*$V$6+C21*$W$6+C22*$X$6+C23*$Y$6+C24*$Z$6+C25*$AA$6+C26*$AB$6)/SUM($L$6:$AB$6) -> 3.242221339e-21 | F18: 0 | G18: 0 | H18: 0 | J18: 6.1063068e-19 | AH18: 5.372109102e-20
A19: 100 | B19: 1.341634733e-19 | C19: 8.04423823e-21 | E19: 8.04423823e-21 | F19: =(E20-E18)/(A20-A18) -> 8.258791465e-22 | G19: 0 | H19: 0 | J19: 1.515905476e-18 | AH19: 1.341634733e-19
A20: 110 | B20: 3.31761516e-19 | C20: 1.975980427e-20 | E20: 1.975980427e-20 | F20: 2.000521847e-21 | G20: 0 | H20: 0 | J20: 3.725861833e-18 | AH20: 3.31761516e-19
A21: 120 | B21: 8.123082677e-19 | C21: 4.805467517e-20 | E21: 4.805467517e-20 | F21: 4.797148626e-21 | G21: 0 | H21: 0 | J21: 9.066559474e-18 | AH21: 8.123082677e-19
A22: 130 | B22: 1.969336036e-18 | C22: 1.157027768e-19 | E22: 1.157027768e-19 | F22: 1.138766673e-20 | G22: 0 | H22: 0 | J22: 2.18433604e-17 | AH22: 1.969336036e-18
A23: 140 | B23: 4.727416133e-18 | C23: 2.758080098e-19 | E23: 2.758080098e-19 | F23: 2.676064597e-20 | G23: 0 | H23: 0 | J23: 5.210238203e-17 | AH23: 4.727416133e-18
A24: 150 | B24: 1.12365731e-17 | C24: 6.509156962e-19 | E24: 6.509156962e-19 | F24: 6.22539944e-20 | G24: 0 | H24: 0 | J24: 1.23043003e-16 | AH24: 1.12365731e-17
A25: 160 | B25: 2.644545207e-17 | C25: 1.520887898e-18 | E25: 1.520887898e-18 | F25: 1.433656466e-19 | G25: 0 | H25: 0 | J25: 2.876851903e-16 | AH25: 2.644545207e-17
A26: 170 | B26: 6.162773835e-17 | C26: 3.518228628e-18 | E26: 3.518228628e-18 | F26: 3.268350464e-19 | G26: 0 | H26: =(G25-2*G26+G27)/(A26-A25)^2 -> 7.375918791e-21 | J26: 6.65946523e-16 | AH26: 6.162773835e-17
A27: 180 | B27: 1.422036266e-16 | C27: 8.057588826e-18 | E27: 8.057588826e-18 | F27: 7.375918791e-19 | G27: =(F19*$L$6+F20*$M$6+F21*$N$6+F22*$O$6+F23*$P$6+F24*$Q$6+F25*$R$6+F26*$S$6+F27*$T$6+F28*$U$6+F29*$V$6+F30*$W$6+F31*$X$6+F32*$Y$6+F33*$Z$6+F34*$AA$6+F35*$AB$6)/SUM($L$6:$AB$6) -> 7.375918791e-19 | H27: =(G26-2*G27+G28)/(A27-A26)^2 -> 1.726215268e-21 | I27: =(H19*$L$6+H20*$M$6+H21*$N$6+H22*$O$6+H23*$P$6+H24*$Q$6+H25*$R$6+H26*$S$6+H27*$T$6+H28*$U$6+H29*$V$6+H30*$W$6+H31*$X$6+H32*$Y$6+H33*$Z$6+H34*$AA$6+H35*$AB$6)/SUM($L$6:$AB$6) -> 1.726215268e-21 | J27: -1.032061002e-15 | AH27: 1.422036266e-16
A28: 190 | B28: 3.249042887e-16 | C28: 1.827006621e-17 | E28: 1.827006621e-17 | F28: 1.647805285e-18 | G28: =(F20*$L$6+F21*$M$6+F22*$N$6+F23*$O$6+F24*$P$6+F25*$Q$6+F26*$R$6+F27*$S$6+F28*$T$6+F29*$U$6+F30*$V$6+F31*$W$6+F32*$X$6+F33*$Y$6+F34*$Z$6+F35*$AA$6+F36*$AB$6)/SUM($L$6:$AB$6) -> 1.647805285e-18 | H28: 1.08613025e-20 | I28: 1.08613025e-20 | J28: -2.252213227e-15 | AH28: 3.249042887e-16
A29: 200 | B29: 7.35041234e-16 | C29: 4.101369453e-17 | E29: 4.101369453e-17 | F29: 3.644148941e-18 | G29: 3.644148941e-18 | H29: 2.337340399e-20 | I29: 2.337340399e-20 | J29: -4.85966695e-15 | AH29: 7.35041234e-16
A30: 210 | B30: 1.646571684e-15 | C30: 9.115304504e-17 | E30: 9.115304504e-17 | F30: 7.977832997e-18 | G30: 7.977832997e-18 | H30: 4.977504401e-20 | I30: 4.977504401e-20 | J30: -1.036696721e-14 | AH30: 1.646571684e-15
A31: 220 | B31: 3.652275229e-15 | C31: 2.005703545e-16 | E31: 2.005703545e-16 | F31: 1.728902145e-17 | G31: 1.728902145e-17 | H31: 1.048925022e-19 | I31: 1.048925022e-19 | J31: -2.186226345e-14 | AH31: 3.652275229e-15
A32: 230 | B32: 8.02160997e-15 | C32: 4.369334741e-16 | E32: 4.369334741e-16 | F32: 3.708946013e-17 | G32: 3.708946013e-17 | H32: 2.187326049e-19 | I32: 2.187326049e-19 | J32: -4.557014147e-14 | AH32: 8.02160997e-15
A33: 240 | B33: 1.744520554e-14 | C33: 9.42359557e-16 | E33: 9.42359557e-16 | F33: 7.876315929e-17 | G33: 7.876315929e-17 | H33: 4.513482467e-19 | I33: 4.513482467e-19 | J33: -9.387366437e-14 | AH33: 1.744520554e-14
A34: 250 | B34: 3.756717214e-14 | C34: 2.01219666e-15 | E34: 2.01219666e-15 | F34: 1.655716831e-16 | G34: 1.655716831e-16 | H34: 9.215771261e-19 | I34: 9.215771261e-19 | J34: -1.910789526e-13 | AH34: 3.756717214e-14
A35: 260 | B35: 8.010510433e-14 | C35: 4.25379322e-15 | E35: 4.25379322e-15 | F35: 3.445379196e-16 | G35: 3.445379196e-16 | H35: 1.861939179e-18 | I35: 1.861939179e-18 | J35: -3.842419289e-13 | AH35: 8.010510433e-14
A36: 270 | B36: 1.691346548e-13 | C36: 8.902955051e-15 | E36: 8.902955051e-15 | F36: 7.096980739e-16 | G36: 7.096980739e-16 | H36: 3.722245196e-18 | I36: 3.722245196e-18 | J36: -7.631749407e-13 | AH36: 1.691346548e-13
A37: 280 | B37: 3.536122018e-13 | C37: 1.84477547e-14 | E37: 1.84477547e-14 | F37: 1.447082748e-15 | G37: 1.447082748e-15 | H37: 7.362775472e-18 | I37: 7.362775472e-18 | J37: -1.496788245e-12 | AH37: 3.536122018e-13
A38: 290 | B38: 7.320583019e-13 | C38: 3.784461001e-14 | E38: 3.784461001e-14 | F38: 2.920744969e-15 | G38: 2.920744969e-15 | H38: 1.44100738e-17 | I38: 1.44100738e-17 | J38: -2.897907109e-12 | AH38: 7.320583019e-13
A39: 300 | B39: 1.500684843e-12 | C39: 7.686265408e-14 | E39: 7.686265408e-14 | F39: 5.83541457e-15 | G39: 5.83541457e-15 | H39: 2.790419145e-17 | I39: 2.790419145e-17 | J39: -5.536615557e-12 | AH39: 1.500684843e-12
A40: 310 | B40: 3.046213857e-12 | C40: 1.545529014e-13 | E40: 1.545529014e-13 | F40: 1.154050332e-14 | G40: 1.154050332e-14 | H40: 5.34615198e-17 | I40: 5.34615198e-17 | J40: -1.04342045e-11 | AH40: 3.046213857e-12
A41: 320 | B41: 6.122941061e-12 | C41: 3.076727204e-13 | E41: 3.076727204e-13 | F41: 2.259174404e-14 | G41: 2.259174404e-14 | H41: 1.013377559e-16 | I41: 1.013377559e-16 | J41: -1.938707087e-11 | AH41: 6.122941061e-12
A42: 330 | B42: 1.218681888e-11 | C42: 6.063877822e-13 | E42: 6.063877822e-13 | F42: 4.377676036e-14 | G42: 4.377676036e-14 | H42: 1.900414475e-16 | I42: 1.900414475e-16 | J42: -3.549267988e-11 | AH42: 1.218681888e-11
A43: 340 | B43: 2.401889816e-11 | C43: 1.183207928e-12 | E43: 1.183207928e-12 | F43: 8.396592142e-14 | G43: 8.396592142e-14 | H43: 3.52582518e-16 | I43: 3.52582518e-16 | J43: -6.397546533e-11 | AH43: 2.401889816e-11
A44: 350 | B44: 4.687596027e-11 | C44: 2.285706211e-12 | E44: 2.285706211e-12 | F44: 1.594133343e-13 | G44: 1.594133343e-13 | H44: 6.471371022e-16 | I44: 6.471371022e-16 | J44: -1.134300811e-10 | AH44: 4.687596027e-11
A45: 360 | B45: 9.05907064e-11 | C45: 4.371474613e-12 | E45: 4.371474613e-12 | F45: 2.995744574e-13 | G45: 2.995744574e-13 | H45: 1.175010862e-15 | I45: 1.175010862e-15 | J45: -1.975889629e-10 | AH45: 9.05907064e-11
A46: 370 | B46: 1.7336266e-10 | C46: 8.277195358e-12 | E46: 8.277195358e-12 | F46: 5.572366666e-13 | G46: 5.572366666e-13 | H46: 2.110492123e-15 | I46: 2.110492123e-15 | J46: -3.376277518e-10 | K46: =109+MATCH(L46,J109:J159,0) -> 141 | L46: =MIN(J109:J159) -> 0.04262104469 | AH46: 1.7336266e-10
A47: 380 | B47: 3.285247394e-10 | C47: 1.551620795e-11 | E47: 1.551620795e-11 | F47: 1.025948088e-12 | G47: 1.025948088e-12 | H47: 3.749792679e-15 | I47: 3.749792679e-15 | J47: -5.647372705e-10 | AH47: 3.285247394e-10
A48: 390 | B48: 6.164863107e-10 | C48: 2.879615712e-11 | E48: 2.879615712e-11 | F48: 1.869638778e-12 | G48: 1.869638778e-12 | H48: 6.590174997e-15 | I48: 6.590174997e-15 | J48: -9.220047111e-10 | AH48: 6.164863107e-10
A49: 400 | B49: 1.145576146e-09 | C49: 5.29089835e-11 | E49: 5.29089835e-11 | F49: 3.372346967e-12 | G49: 3.372346967e-12 | H49: 1.145608799e-14 | I49: 1.145608799e-14 | J49: -1.463171798e-09 | AH49: 1.145576146e-09
A50: 410 | B50: 2.10800711e-09 | C50: 9.624309646e-11 | E50: 9.624309646e-11 | F50: 6.020663955e-12 | G50: 6.020663955e-12 | H50: 1.969735526e-14 | I50: 1.969735526e-14 | J50: -2.24288322e-09 | AH50: 2.10800711e-09
A51: 420 | B51: 3.841229736e-09 | C51: 1.733222626e-10 | E51: 1.733222626e-10 | F51: =(E52-E50)/(A52-A50) -> 1.063871647e-11 | G51: 1.063871647e-11 | H51: 3.349600486e-14 | I51: 3.349600486e-14 | J51: -3.28741293e-09 | AH51: 3.841229736e-09
A52: 430 | B52: 6.931403995e-09 | C52: 3.090174258e-10 | E52: 3.090174258e-10 | F52: 1.860636947e-11 | G52: 1.860636947e-11 | H52: 5.633414364e-14 | I52: 5.633414364e-14 | J52: -4.524562133e-09 | AH52: 6.931403995e-09
A53: 440 | B53: 1.238590051e-08 | C53: 5.45449652e-10 | E53: 5.45449652e-10 | F53: 3.220743683e-11 | G53: 3.220743683e-11 | H53: 9.369635116e-14 | I53: 9.369635116e-14 | J53: -5.633204707e-09 | AH53: 1.238590051e-08
A54: 450 | B54: 2.191756214e-08 | C54: 9.531661625e-10 | E54: 9.531661625e-10 | F54: 5.517813931e-11 | G54: 5.517813931e-11 | H54: 1.54107278e-13 | I54: 1.54107278e-13 | J54: -5.741640121e-09 | L54: Tom O'Haver (toh@umd.edu), Version 2, July 2018 | AH54: 2.191756214e-08
A55: 460 | B55: 3.840768652e-08 | C55: 1.649012438e-09 | E55: 1.649012438e-09 | F55: 9.355956959e-11 | G55: 9.355956959e-11 | H55: 2.506389967e-13 | I55: 2.506389967e-13 | J55: -2.851488506e-09 | AH55: 3.840768652e-08
A56: 470 | B56: 6.665126206e-08 | C56: 2.824357554e-09 | E56: 2.824357554e-09 | F56: 1.570048995e-10 | G56: 1.570048995e-10 | H56: 4.030629329e-13 | I56: 4.030629329e-13 | J56: 7.221770376e-09 | AH56: 6.665126206e-08
A57: 480 | B57: 1.145423664e-07 | C57: 4.789110429e-09 | E57: 4.789110429e-09 | F57: 2.607565228e-10 | G57: 2.607565228e-10 | H57: 6.408663578e-13 | I57: 6.408663578e-13 | J57: 3.273715652e-08 | AH57: 1.145423664e-07
A58: 490 | B58: 1.949372464e-07 | C58: 8.03948801e-09 | E58: 8.03948801e-09 | F58: 4.285947818e-10 | G58: 4.285947818e-10 | H58: 1.007399901e-12 | I58: 1.007399901e-12 | J58: 8.930416012e-08 | AH58: 1.949372464e-07
A59: 500 | B59: 3.285473071e-07 | C59: 1.336100606e-08 | E59: 1.336100606e-08 | F59: 6.971730309e-10 | G59: 6.971730309e-10 | H59: 1.565463924e-12 | I59: 1.565463924e-12 | J59: 2.05430298e-07 | AH59: 3.285473071e-07
A60: 510 | B60: 5.483767934e-07 | C60: 2.198294863e-08 | E60: 2.198294863e-08 | F60: 1.122297672e-09 | G60: 1.122297672e-09 | H60: 2.404667672e-12 | I60: 2.404667672e-12 | J60: 4.317097051e-07 | AH60: 5.483767934e-07
A61: 520 | B61: 9.064463885e-07 | C61: 3.580695951e-08 | E61: 3.580695951e-08 | F61: 1.787889081e-09 | G61: 1.787889081e-09 | H61: 3.650891073e-12 | I61: 3.650891073e-12 | J61: 8.557309091e-07 | AH61: 9.064463885e-07
A62: 530 | B62: 1.483853691e-06 | C62: 5.774073025e-08 | E62: 5.774073025e-08 | F62: 2.818569597e-09 | G62: 2.818569597e-09 | H62: 5.478124858e-12 | I62: 5.478124858e-12 | J62: 1.625793376e-06 | AH62: 1.483853691e-06
A63: 540 | B63: 2.405637205e-06 | C63: 9.217835145e-08 | E63: 9.217835145e-08 | F63: 4.397062599e-09 | G63: 4.397062599e-09 | H63: 8.122835286e-12 | I63: 8.122835286e-12 | J63: 2.987932656e-06 | AH63: 2.405637205e-06
A64: 550 | B64: 3.862457028e-06 | C64: 1.456819822e-07 | E64: 1.456819822e-07 | F64: 6.787839129e-09 | G64: 6.787839129e-09 | H64: 1.190076617e-11 | I64: 1.190076617e-11 | J64: 5.34267288e-06 | AH64: 3.862457028e-06
A65: 560 | B65: 6.141808368e-06 | C65: 2.27935134e-07 | E65: 2.27935134e-07 | F65: 1.036869228e-08 | G65: 1.036869228e-08 | H65: 1.722572279e-11 | I65: 1.722572279e-11 | J65: 9.330469732e-06 | AH65: 6.141808368e-06
A66: 570 | B66: 9.672366645e-06 | C66: 3.530558278e-07 | E66: 3.530558278e-07 | F66: 1.56721177e-08 | G66: 1.56721177e-08 | H66: 2.462935258e-11 | I66: 2.462935258e-11 | J66: 1.595808753e-05 | AH66: 9.672366645e-06
A67: 580 | B67: 1.508614153e-05 | C67: 5.413774881e-07 | E67: 5.413774881e-07 | F67: 2.343847839e-08 | G67: 2.343847839e-08 | H67: 3.478022938e-11 | I67: 3.478022938e-11 | J67: 2.67822546e-05 | AH67: 1.508614153e-05
A68: 590 | B68: 2.330439548e-05 | C68: 8.218253955e-07 | E68: 8.218253955e-07 | F68: 3.468286201e-08 | G68: 3.468286201e-08 | H68: 4.849966342e-11 | I68: 4.849966342e-11 | J68: 4.417188855e-05 | AH68: 2.330439548e-05
A69: 600 | B69: 3.565474276e-05 | C69: 1.235034728e-06 | E69: 1.235034728e-06 | F69: 5.077721198e-08 | G69: 5.077721198e-08 | H69: 6.677063068e-11 | I69: 6.677063068e-11 | J69: 7.16759076e-05 | AH69: 3.565474276e-05
A70: 610 | B70: 5.402843912e-05 | C70: 1.837369635e-06 | E70: 1.837369635e-06 | F70: 7.354862501e-08 | G70: 7.354862501e-08 | H70: 9.073511547e-11 | I70: 9.073511547e-11 | J70: 0.0001145299277 | AH70: 5.402843912e-05
A71: 620 | B71: 8.10885114e-05 | C71: 2.706007229e-06 | E71: 2.706007229e-06 | F71: 1.053935496e-07 | G71: 1.053935496e-07 | H71: 1.216741159e-10 | I71: 1.216741159e-10 | J71: 0.0001803415679 | AH71: 8.10885114e-05
A72: 630 | B72: 0.0001205409177 | C72: 3.945240627e-06 | E72: 3.945240627e-06 | F72: 1.494058858e-07 | G72: 1.494058858e-07 | H72: 1.609637549e-10 | I72: 1.609637549e-10 | J72: 0.0002799999626 | AH72: 0.0001205409177
A73: 640 | B73: 0.0001774821671 | C73: 5.694124944e-06 | E73: 5.694124944e-06 | F73: 2.095145974e-07 | G73: 2.095145974e-07 | H73: 2.1000061e-10 | I73: 2.1000061e-10 | J73: 0.0004288594167 | AH73: 0.0001774821671
A74: 650 | B74: =(($B$4*$B$6*SQRT(PI()/2)*EXP(0.5*($B$4*$B$6)^2-$B$6*(A74-1000))*ERFC((1/SQRT(2))*($B$4*$B$6-((A74-1000)/$B$4))))+$B$3*($B$4*$B$6*SQRT(PI()/2)*EXP(0.5*($B$4*$B$6)^2-$B$6*(A74-1500))*ERFC((1/SQRT(2))*($B$4*$B$6-((A74-1500)/$B$4)))))+$B$5*(RAND()-RAND()+RAND()-RAND()) -> 0.0002588374929 | C74: 8.135532575e-06 | E74: 8.135532575e-06 | F74: 2.906233701e-07 | G74: 2.906233701e-07 | H74: 2.700898147e-10 | I74: 2.700898147e-10 | J74: =B74-($J$5*G74)+($J$4*E74) -> 0.0006482485896 | AH74: =(($B$4*$B$6*SQRT(PI()/2)*EXP(0.5*($B$4*$B$6)^2-$B$6*(A74-1000))*ERFC((1/SQRT(2))*($B$4*$B$6-((A74-1000)/$B$4))))) -> 0.0002588374929
A75: =A74+10 -> 660 | B75: 0.0003739034163 | C75: =(B75-B74)/(A75-A74) -> 1.150659235e-05 | E75: 1.150659235e-05 | F75: =(E76-E74)/(A76-A74) -> 3.987411242e-07 | G75: 3.987411242e-07 | H75: 3.422909828e-10 | I75: 3.422909828e-10 | J75: 0.0009673534913 | AH75: 0.0003739034163
A76: 670 | B76: 0.0005350069669 | C76: 1.611035506e-05 | E76: 1.611035506e-05 | F76: 5.410879766e-07 | G76: 5.410879766e-07 | H76: 4.272198709e-10 | I76: 4.272198709e-10 | J76: 0.001425512948 | AH76: 0.0005350069669
A77: 680 | B77: 0.0007582904857 | C77: 2.232835188e-05 | E77: 2.232835188e-05 | F77: 7.261568161e-07 | G77: 7.261568161e-07 | H77: 5.248080962e-10 | I77: 5.248080962e-10 | J77: 0.00207494696 | L77: Type in (or Copy and Paste) any data you like into column A (X) and B (Y). | AH77: 0.0007582904857
A78: 690 | B78: 0.0010646254 | C78: 3.063349138e-05 | E78: 3.063349138e-05 | F78: 9.637064652e-07 | G78: 9.637064652e-07 | H78: 6.340292427e-10 | I78: 6.340292427e-10 | J78: 0.002983909494 | L78: Change the smooth width by changing the 17 red coefficients in row 5, columns K through AA. | AH78: 0.0010646254
A79: 700 | B79: 0.001480650211 | C79: 4.160248118e-05 | E79: 4.160248118e-05 | F79: 1.264659039e-06 | G79: 1.264659039e-06 | H79: 7.52607125e-10 | I79: 7.52607125e-10 | J79: 0.004240216118 | L79: Extend the spreadsheet to longer columns of data by dragging the last row of columns A through H down as needed. | AH79: 0.001480650211
A80: 710 | B80: 0.002039916933 | C80: 5.592667215e-05 | E80: 5.592667215e-05 | F80: 1.640872324e-06 | G80: 1.640872324e-06 | H80: 8.767303805e-10 | I80: 8.767303805e-10 | J80: 0.005955042606 | AH80: 0.002039916933
A81: 720 | B81: 0.00278411621 | C81: 7.441992767e-05 | E81: 7.441992767e-05 | F81: 2.104758648e-06 | G81: 2.104758648e-06 | H81: 1.000806119e-09 | I81: 1.000806119e-09 | J81: 0.008266823697 | AH81: 0.00278411621
A82: 730 | B82: 0.003764334661 | C82: 9.802184512e-05 | E82: =(C74*$L$6+C75*$M$6+C76*$N$6+C77*$O$6+C78*$P$6+C79*$Q$6+C80*$R$6+C81*$S$6+C82*$T$6+C83*$U$6+C84*$V$6+C85*$W$6+C86*$X$6+C87*$Y$6+C88*$Z$6+C89*$AA$6+C90*$AB$6)/SUM($L$6:$AB$6) -> 9.802184512e-05 | F82: 2.668725584e-06 | G82: 2.668725584e-06 | H82: 1.117292939e-09 | I82: 1.117292939e-09 | J82: 0.01134500365 | AH82: 0.003764334661
A83: 740 | B83: 0.005042279054 | C83: 0.0001277944394 | E83: 0.0001277944394 | F83: 3.344421814e-06 | G83: 3.344421814e-06 | H83: 1.216658807e-09 | I83: 1.216658807e-09 | J83: 0.01539330646 | AH83: 0.005042279054
A84: 750 | B84: 0.006691381868 | C84: 0.0001649102814 | E84: 0.0001649102814 | F84: 4.141783924e-06 | G84: 4.141783924e-06 | H84: 1.287510516e-09 | I84: 1.287510516e-09 | J84: 0.02065211012 | AH84: 0.006691381868
A85: 760 | B85: 0.008797683047 | C85: 0.0002106301178 | E85: 0.0002106301178 | F85: 5.067897086e-06 | G85: 5.067897086e-06 | H85: 1.31693714e-09 | I85: 1.31693714e-09 | J85: 0.02739943584 | AH85: 0.008797683047
A86: 770 | B86: 0.01146036528 | C86: 0.0002662682231 | E86: 0.0002662682231 | F86: 6.125703962e-06 | G86: 6.125703962e-06 | H86: 1.29109893e-09 | I86: 1.29109893e-09 | J86: 0.03595001 | AH86: 0.01146036528
A87: 780 | B87: 0.01479180725 | C87: 0.0003331441971 | E87: 0.0003331441971 | F87: 7.312620731e-06 | G87: 7.312620731e-06 | H87: 1.196074715e-09 | I87: 1.196074715e-09 | J87: 0.04665183805 | AH87: 0.01479180725
A88: 790 | B88: 0.01891701363 | C88: 0.0004125206377 | E88: 0.0004125206377 | F88: 8.619144972e-06 | G88: 8.619144972e-06 | H88: 1.018955414e-09 | I88: 1.018955414e-09 | J88: 0.05987975716 | AH88: 0.01891701363
A89: 800 | B89: 0.02397228459 | C89: 0.0005055270965 | E89: 0.0005055270965 | F89: 1.002756475e-05 | G89: 1.002756475e-05 | H89: 7.491400816e-10 | I89: 7.491400816e-10 | J89: 0.07602552111 | AH89: 0.02397228459
A90: 810 | B90: 0.03010300392 | C90: 0.0006130719328 | E90: 0.0006130719328 | F90: 1.151089854e-05 | G90: 1.151089854e-05 | H90: 3.797565709e-10 | I90: 3.797565709e-10 | J90: 0.09548412476 | AH90: 0.03010300392
A91: 820 | B91: 0.03746045459 | C91: 0.0007357450674 | E91: 0.0007357450674 | F91: 1.303220799e-05 | G91: 1.303220799e-05 | H91: =(G90-2*G91+G92)/(A91-A90)^2 -> -9.090486751e-11 | I91: =(H83*$L$6+H84*$M$6+H85*$N$6+H86*$O$6+H87*$P$6+H88*$Q$6+H89*$R$6+H90*$S$6+H91*$T$6+H92*$U$6+H93*$V$6+H94*$W$6+H95*$X$6+H96*$Y$6+H97*$Z$6+H98*$AA$6+H99*$AB$6)/SUM($L$6:$AB$6) -> -9.090486751e-11 | J91: 0.1186362993 | AH91: 0.03746045459
A92: 830 | B92: 0.04619761552 | C92: 0.0008737160926 | E92: 0.0008737160926 | F92: 1.454442695e-05 | G92: =(F84*$L$6+F85*$M$6+F86*$N$6+F87*$O$6+F88*$P$6+F89*$Q$6+F90*$R$6+F91*$S$6+F92*$T$6+F93*$U$6+F94*$V$6+F95*$W$6+F96*$X$6+F97*$Y$6+F98*$Z$6+F99*$AA$6+F100*$AB$6)/SUM($L$6:$AB$6) -> 1.454442695e-05 | H92: -6.580852331e-10 | I92: -6.580852331e-10 | J92: 0.1458274008 | AH92: 0.04619761552
A93: 840 | B93: 0.05646395158 | C93: 0.001026633606 | E93: 0.001026633606 | F93: 1.599083739e-05 | G93: 1.599083739e-05 | H93: -1.309536146e-09 | I93: -1.309536146e-09 | J93: 0.177343258 | AH93: 0.05646395158
A94: 850 | B94: 0.06839927999 | C94: 0.00119353284 | E94: 0.00119353284 | F94: 1.730629421e-05 | G94: 1.730629421e-05 | H94: -2.024946692e-09 | I94: -2.024946692e-09 | J94: 0.2133839243 | AH94: 0.06839927998
A95: 860 | B95: 0.08212687489 | C95: 0.001372759491 | E95: 0.001372759491 | F95: 1.841925636e-05 | G95: 1.841925636e-05 | H95: -2.775964109e-09 | I95: -2.775964109e-09 | J95: 0.2540366542 | AH95: 0.08212687488
A96: 870 | B96: 0.09774605457 | C96: 0.001561917968 | E96: 0.001561917968 | F96: 1.925462211e-05 | G96: 1.925462211e-05 | H96: -3.526918776e-09 | I96: -3.526918776e-09 | J96: 0.299249767 | AH96: 0.09774605454
A97: 880 | B97: 0.1153245739 | C97: 0.001757851933 | E97: 0.001757851933 | F97: 1.973729597e-05 | G97: 1.973729597e-05 | H97: -4.236308233e-09 | I97: -4.236308233e-09 | J97: 0.3488093246 | AH97: 0.1153245738
A98: 890 | B98: 0.1348912128 | C98: 0.001956663887 | E98: 0.001956663887 | F98: 1.979633901e-05 | G98: 1.979633901e-05 | H98: -4.859022956e-09 | I98: -4.859022956e-09 | J98: 0.40232069 | AH98: 0.1348912126
A99: 900 | B99: 0.1564289999 | C99: 0.002153778713 | E99: 0.002153778713 | F99: 1.936947976e-05 | G99: 1.936947976e-05 | H99: -5.349214737e-09 | I99: -5.349214737e-09 | J99: 0.4591970187 | AH99: 0.1564289997
A100: 910 | B100: 0.1798695347 | C100: 0.002344053482 | E100: 0.002344053482 | F100: 1.840769903e-05 | G100: 1.840769903e-05 | H100: -5.663625666e-09 | I100: -5.663625666e-09 | J100: 0.5186565407 | AH100: 0.1798695343
A101: 920 | B101: 0.2050888617 | C101: 0.002521932694 | E101: 0.002521932694 | F101: 1.687955574e-05 | G101: 1.687955574e-05 | H101: -5.765122173e-09 | I101: -5.765122173e-09 | J101: 0.5797300955 | AH101: 0.2050888609
A102: 930 | B102: 0.2319053076 | C102: 0.002681644597 | E102: 0.002681644597 | F102: 1.477490022e-05 | G102: 1.477490022e-05 | H102: -5.626124883e-09 | I102: -5.626124883e-09 | J102: 0.6412798119 | AH102: 0.2319053062
A103: 940 | B103: 0.2600796146 | C103: 0.002817430698 | E103: 0.002817430698 | F103: 1.210763222e-05 | G103: 1.210763222e-05 | H103: -5.231600374e-09 | I103: -5.231600374e-09 | J103: 0.7020290971 | AH103: 0.2600796121
A104: 950 | B104: 0.289317587 | C104: 0.002923797241 | E104: 0.002923797241 | F104: 8.917204186e-06 | G104: 8.917204186e-06 | H104: -4.58129164e-09 | I104: -4.58129164e-09 | J104: 0.7606032655 | AH104: 0.2893175826
A105: 960 | B105: 0.3192753348 | C105: 0.002995774782 | E105: 0.002995774782 | F105: 5.268646985e-06 | G105: 5.268646985e-06 | H105: -3.690912529e-09 | I105: -3.690912529e-09 | J105: 0.8155792798 | AH105: 0.3192753272
A106: 970 | B106: 0.3495670366 | C106: 0.003029170181 | E106: 0.003029170181 | F106: 1.25099853e-06 | G106: 1.25099853e-06 | H106: -2.592115085e-09 | I106: -2.592115085e-09 | J106: 0.8655422485 | AH106: 0.3495670233
A107: 980 | B107: 0.3797749842 | C107: 0.003020794752 | E107: 0.003020794752 | F107: -3.025861432e-06 | G107: -3.025861432e-06 | H107: -1.33115024e-09 | I107: -1.33115024e-09 | J107: 0.9091456369 | AH107: 0.3797749613
A108: 990 | B108: 0.4094615137 | C108: 0.002968652952 | E108: 0.002968652952 | F108: -7.435836419e-06 | G108: -7.435836419e-06 | H108: 3.372992912e-11 | I108: 3.372992912e-11 | J108: 0.9451716518 | AH108: 0.4094614747
A109: 1000 | B109: 0.4381822939 | C109: 0.002872078024 | E109: 0.002872078024 | F109: -1.184243841e-05 | G109: -1.184243841e-05 | H109: 1.435950675e-09 | I109: 1.435950675e-09 | J109: 0.9725880326 | AH109: 0.4381822282
A110: 1010 | B110: 0.4655003358 | C110: 0.002731804184 | E110: 0.002731804184 | F110: -1.610544534e-05 | G110: -1.610544534e-05 | H110: 2.805080368e-09 | I110: 2.805080368e-09 | J110: 0.9905975522 | AH110: 0.4655002261
A111: 1020 | B111: 0.491000027 | C111: 0.002549969117 | E111: 0.002549969117 | F111: -2.008794423e-05 | G111: -2.008794423e-05 | H111: 4.071702641e-09 | I111: 4.071702641e-09 | J111: 0.998676908 | AH111: 0.4909998457
A112: 1030 | B112: 0.5143004799 | C112: 0.0023300453 | E112: 0.0023300453 | F112: -2.366327285e-05 | G112: -2.366327285e-05 | H112: 5.172265868e-09 | I112: 5.172265868e-09 | J112: 0.9966023512 | AH112: 0.5143001832
A113: 1040 | B113: 0.5350675165 | C113: 0.00207670366 | E113: 0.00207670366 | F113: -2.672137489e-05 | G113: -2.672137489e-05 | H113: 6.05347879e-09 | I113: 6.05347879e-09 | J113: 0.9844602944 | AH113: 0.5350670354
A114: 1050 | B114: 0.5530236946 | C114: 0.001795617802 | E114: 0.001795617802 | F114: -2.917412905e-05 | G114: -2.917412905e-05 | H114: 6.675865536e-09 | I114: 6.675865536e-09 | J114: 0.9626421943 | AH114: 0.5530229221
A115: 1060 | B115: 0.5679559054 | C115: 0.001493221079 | E115: 0.001493221079 | F115: -3.095929666e-05 | G115: -3.095929666e-05 | H115: 7.016179052e-09 | I115: 7.016179052e-09 | J115: 0.9318241143 | AH115: 0.567954677
A116: 1070 | B116: 0.579720224 | C116: 0.001176431869 | E116: 0.001176431869 | F116: -3.204284636e-05 | G116: -3.204284636e-05 | H116: 7.068488595e-09 | I116: 7.068488595e-09 | J116: 0.8929324488 | AH116: 0.5797182896
A117: 1080 | B117: 0.5882438656 | C117: 0.0008523641519 | E117: 0.0008523641519 | F117: -3.24195472e-05 | G117: -3.24195472e-05 | H117: 6.843890331e-09 | I117: 6.843890331e-09 | J117: 0.847098223 | AH117: 0.5882408483
A118: 1090 | B118: 0.5935242748 | C118: 0.0005280409246 | E118: 0.0005280409246 | F118: -3.211185901e-05 | G118: -3.211185901e-05 | H118: 6.368924212e-09 | I118: 6.368924212e-09 | J118: 0.7956031079 | K118: peak 1 max | AH118: 0.5935196139
A119: 1100 | B119: 0.5956255445 | C119: 0.0002101269717 | E119: 0.0002101269717 | F119: -3.11672784e-05 | G119: -3.11672784e-05 | H119: 5.682899761e-09 | I119: 5.682899761e-09 | J119: 0.7398207321 | AH119: 0.5956184136
A120: 1110 | B120: 0.5946724981 | C120: -9.530464336e-05 | E120: -9.530464336e-05 | F120: -2.965440781e-05 | G120: -2.965440781e-05 | H120: 4.834425284e-09 | I120: 4.834425284e-09 | J120: 0.6811570204 | AH120: 0.5946616924
A121: 1120 | B121: 0.5908428862 | C121: -0.0003829611845 | E121: -0.0003829611845 | F121: -2.765809469e-05 | G121: -2.765809469e-05 | H121: 3.877490338e-09 | I121: 3.877490338e-09 | J121: 0.6209931349 | AH121: 0.5908266685
A122: 1130 | B122: 0.5843582209 | C122: -0.0006484665371 | E122: -0.0006484665371 | F122: -2.527403254e-05 | G122: -2.527403254e-05 | H122: 2.867466424e-09 | I122: 2.867466424e-09 | J122: 0.5606341715 | AH122: 0.5843341127
A123: 1140 | B123: 0.5754738025 | C123: -0.0008884418352 | E123: -0.0008884418352 | F123: -2.260322374e-05 | G123: -2.260322374e-05 | H123: 1.857367051e-09 | I123: 1.857367051e-09 | J123: 0.5012661331 | AH123: 0.5754383061
A124: 1150 | B124: 0.5644684924 | C124: -0.001100531012 | E124: -0.001100531012 | F124: -1.974667825e-05 | G124: -1.974667825e-05 | H124: 8.946517193e-10 | I124: 8.946517193e-10 | J124: 0.4439229255 | AH124: 0.5644167249
A125: 1160 | B125: 0.5516347384 | C125: -0.0012833754 | E125: -0.0012833754 | F125: -1.680066757e-05 | G125: -1.680066757e-05 | H125: 1.877836304e-11 | I125: 1.877836304e-11 | J125: 0.389464285 | AH125: 0.5515599577
A126: 1170 | B126: 0.5372692948 | C126: -0.001436544364 | E126: -0.001436544364 | F126: -1.385277907e-05 | G126: -1.385277907e-05 | H126: -7.403831305e-10 | I126: -7.403831305e-10 | J126: 0.3385647273 | AH126: 0.5371622934
A127: 1180 | B127: 0.5216649849 | C127: -0.001560430981 | E127: -0.001560430981 | F127: -1.097892887e-05 | G127: -1.097892887e-05 | H127: -1.363256058e-09 | I127: -1.363256058e-09 | J127: 0.2917128689 | AH127: 0.5215133269
A128: 1190 | B128: 0.5051037555 | C128: -0.001656122941 | E128: -0.001656122941 | F128: -8.241404285e-06 | G128: -8.241404285e-06 | H128: -1.840442802e-09 | I128: -1.840442802e-09 | J128: 0.2492198669 | AH128: 0.5048908305
A129: 1200 | B129: 0.4878511649 | C129: -0.001725259067 | E129: -0.001725259067 | F129: -5.687923977e-06 | G129: -5.687923977e-06 | H129: -2.171918199e-09 | I129: -2.171918199e-09 | J129: 0.211235292 | AH129: 0.4875550348
A130: 1210 | B130: 0.4701523507 | C130: -0.001769881421 | E130: -0.001769881421 | F130: -3.351635489e-06 | G130: -3.351635489e-06 | H130: -2.365699271e-09 | I130: -2.365699271e-09 | J130: 0.1777684918 | AH130: 0.4697443673
A131: 1220 | B131: 0.4522294329 | C131: -0.001792291777 | E131: -0.001792291777 | F131: -1.251916928e-06 | G131: -1.251916928e-06 | H131: -2.436178555e-09 | I131: -2.436178555e-09 | J131: 0.1487134271 | AH131: 0.4516726097
A132: 1230 | B132: 0.4342802353 | C132: -0.001794919759 | E132: -0.001794919759 | F132: 6.041837773e-07 | G132: 6.041837773e-07 | H132: -2.402304691e-09 | I132: -2.402304691e-09 | J132: 0.1238750358 | AH132: 0.4335273684
A133: 1240 | B133: 0.4164781543 | C133: -0.001780208101 | E133: -0.001780208101 | F133: 2.220054014e-06 | G133: 2.220054014e-06 | H133: -2.285772344e-09 | I133: -2.285772344e-09 | J133: 0.1029953819 | AH133: 0.4154696985
A134: 1250 | B134: 0.3989729675 | C134: -0.001750518679 | E134: -0.001750518679 | F134: 3.607347016e-06 | G134: 3.607347016e-06 | H134: -2.109349766e-09 | I134: -2.109349766e-09 | J134: 0.08577813022 | K134: Midpoint between 1000 and 1500 | AH134: 0.3976346911
A135: 1260 | B135: 0.3818923559 | C135: -0.001708061161 | E135: -0.001708061161 | F135: 4.783705041e-06 | G135: 4.783705041e-06 | H135: -1.895432395e-09 | I135: -1.895432395e-09 | J135: 0.07191021992 | AH135: 0.3801328193
A136: 1270 | B136: 0.3653439101 | C136: -0.001654844578 | E136: -0.001654844578 | F136: 5.770519827e-06 | G136: 5.770519827e-06 | H136: -1.664870841e-09 | I136: -1.664870841e-09 | J136: 0.06107995871 | AH136: 0.3630518371
A137: 1280 | B137: 0.3494174025 | C137: -0.001592650765 | E137: -0.001592650765 | F137: 6.590847528e-06 | G137: 6.590847528e-06 | H137: -1.436086146e-09 | I137: -1.436086146e-09 | J137: 0.05299108771 | AH137: 0.346459041
A138: 1290 | B138: =(($B$4*$B$6*SQRT(PI()/2)*EXP(0.5*($B$4*$B$6)^2-$B$6*(A138-1000))*ERFC((1/SQRT(2))*($B$4*$B$6-((A138-1000)/$B$4))))+$B$3*($B$4*$B$6*SQRT(PI()/2)*EXP(0.5*($B$4*$B$6)^2-$B$6*(A138-1500))*ERFC((1/SQRT(2))*($B$4*$B$6-((A138-1500)/$B$4)))))+$B$5*(RAND()-RAND()+RAND()-RAND()) -> 0.3341871262 | C138: -0.001523027627 | E138: -0.001523027627 | F138: 7.267566615e-06 | G138: 7.267566615e-06 | H138: -1.224457811e-09 | I138: -1.224457811e-09 | J138: =B138-($J$5*G138)+($J$4*E138) -> 0.04737266665 | AH138: =(($B$4*$B$6*SQRT(PI()/2)*EXP(0.5*($B$4*$B$6)^2-$B$6*(A138-1000))*ERFC((1/SQRT(2))*($B$4*$B$6-((A138-1000)/$B$4))))) -> 0.3304037235
A139: =A138+10 -> 1300 | B139: 0.3197141319 | C139: =(B139-B138)/(A139-A138) -> -0.001447299432 | E139: -0.001447299432 | F139: =(E140-E138)/(A140-A138) -> 7.821839921e-06 | G139: 7.821839921e-06 | H139: -1.041952396e-09 | I139: -1.041952396e-09 | J139: 0.04398487757 | AH139: 0.3149196749
A140: 1310 | B140: 0.3060482236 | C140: -0.001366590829 | E140: -0.001366590829 | F140: 8.271917988e-06 | G140: 8.271917988e-06 | H140: -8.969525803e-10 | I140: -8.969525803e-10 | J140: 0.04262104469 | AH140: 0.3000276228
A141: 1320 | B141: 0.2932296129 | C141: -0.001281861072 | E141: -0.001281861072 | F141: 8.632300796e-06 | G141: 8.632300796e-06 | H141: -7.942472018e-10 | I141: -7.942472018e-10 | J141: 0.04310631791 | AH141: 0.2857375219
A142: 1330 | B142: 0.2812901647 | C142: -0.001193944813 | E142: -0.001193944813 | F142: 8.913258884e-06 | G142: 8.913258884e-06 | H142: -7.351495303e-10 | I142: -7.351495303e-10 | J142: 0.04529357327 | AH142: 0.2720506416
A143: 1340 | B143: 0.2702542058 | C143: -0.001103595895 | E143: -0.001103595895 | F143: 9.12070202e-06 | G143: 9.12070202e-06 | H143: -7.177211434e-10 | I143: -7.177211434e-10 | J143: 0.0490571534 | AH143: 0.2589614155
A144: 1350 | B144: 0.260138898 | C144: -0.001011530773 | E144: -0.001011530773 | F144: 9.25637304e-06 | G144: 9.25637304e-06 | H144: -7.370892468e-10 | I144: -7.370892468e-10 | J144: 0.05428511143 | AH144: 0.246459042
A145: 1360 | B145: 0.2509542137 | C145: -0.000918468434 | E145: -0.000918468434 | F145: 9.318335137e-06 | G145: 9.318335137e-06 | H145: -7.858535617e-10 | I145: -7.858535617e-10 | J145: 0.0608706383 | AH145: 0.2345288387
A146: 1370 | B146: 0.242702573 | C146: -0.00082516407 | E146: =(C138*$L$6+C139*$M$6+C140*$N$6+C141*$O$6+C142*$P$6+C143*$Q$6+C144*$R$6+C145*$S$6+C146*$T$6+C147*$U$6+C148*$V$6+C149*$W$6+C150*$X$6+C151*$Y$6+C152*$Z$6+C153*$AA$6+C154*$AB$6)/SUM($L$6:$AB$6) -> -0.00082516407 | F146: 9.301711877e-06 | G146: 9.301711877e-06 | H146: -8.545830764e-10 | I146: -8.545830764e-10 | J146: 0.06870335031 | AH146: 0.2231533621
A147: 1380 | B147: 0.235378231 | C147: -0.0007324341965 | E147: -0.0007324341965 | F147: 9.199630309e-06 | G147: 9.199630309e-06 | H147: -9.324020383e-10 | I147: -9.324020383e-10 | J147: 0.07766108979 | AH147: 0.2123133163
A148: 1390 | B148: 0.2289665164 | C148: -0.0006411714638 | E148: -0.0006411714638 | F148: 9.004308537e-06 | G148: 9.004308537e-06 | H148: -1.007658551e-09 | I148: -1.007658551e-09 | J148: 0.08760284778 | AH148: 0.2019882739
A149: 1400 | B149: 0.2234430361 | C149: -0.0005523480257 | E149: -0.0005523480257 | F149: 8.708220911e-06 | G149: 8.708220911e-06 | H149: -1.068659042e-09 | I149: -1.068659042e-09 | J149: 0.09836334884 | K149: Minimum between peaks | AH149: 0.1921572362
A150: 1410 | B150: 0.2187729657 | C150: -0.0004670070456 | E150: -0.0004670070456 | F150: 8.30526738e-06 | G150: 8.30526738e-06 | H150: -1.104439424e-09 | I150: -1.104439424e-09 | J150: 0.1097497441 | AH150: 0.1827990588
A151: 1420 | B151: 0.2149105389 | C151: -0.0003862426781 | E151: -0.0003862426781 | F151: 7.791869907e-06 | G151: 7.791869907e-06 | H151: -1.105531328e-09 | I151: -1.105531328e-09 | J151: 0.121540737 | AH151: 0.1738927667
A152: 1430 | B152: 0.2117988424 | C152: -0.0003111696474 | E152: -0.0003111696474 | F152: 7.167919301e-06 | G152: 7.167919301e-06 | H152: -1.064671755e-09 | I152: -1.064671755e-09 | J152: 0.1334883192 | AH152: 0.1654177812
A153: 1440 | B153: 0.2093699995 | C153: -0.0002428842921 | E153: -0.0002428842921 | F153: 6.437501519e-06 | G153: 6.437501519e-06 | H153: -9.773991594e-10 | I153: -9.773991594e-10 | J153: 0.145322126 | AH153: 0.1573540771
A154: 1450 | B154: 0.2075458033 | C154: -0.000182419617 | E154: -0.000182419617 | F154: 5.609343821e-06 | G154: 5.609343821e-06 | H154: -8.424799861e-10 | I154: -8.424799861e-10 | J154: 0.1567562435 | AH154: 0.1496822868
A155: 1460 | B155: 0.2062388292 | C155: -0.0001306974157 | E155: -0.0001306974157 | F155: 4.696938125e-06 | G155: 4.696938125e-06 | H155: =(G154-2*G155+G156)/(A155-A154)^2 -> -6.621178793e-10 | I155: =(H147*$L$6+H148*$M$6+H149*$N$6+H150*$O$6+H151*$P$6+H152*$Q$6+H153*$R$6+H154*$S$6+H155*$T$6+H156*$U$6+H157*$V$6+H158*$W$6+H159*$X$6+H160*$Y$6+H161*$Z$6+H162*$AA$6+H163*$AB$6)/SUM($L$6:$AB$6) -> -6.621178793e-10 | J155: 0.1674981165 | AH155: 0.1423837638
A156: 1470 | B156: 0.2053540206 | C156: -8.848085455e-05 | E156: -8.848085455e-05 | F156: 3.718320641e-06 | G156: =(F148*$L$6+F149*$M$6+F150*$N$6+F151*$O$6+F152*$P$6+F153*$Q$6+F154*$R$6+F155*$S$6+F156*$T$6+F157*$U$6+F158*$V$6+F159*$W$6+F160*$X$6+F161*$Y$6+F162*$Z$6+F163*$AA$6+F164*$AB$6)/SUM($L$6:$AB$6) -> 3.718320641e-06 | H156: -4.419128703e-10 | I156: -4.419128703e-10 | J156: 0.1772590434 | AH156: 0.135440616
A157: 1480 | B157: 0.2047907106 | C157: -5.633100285e-05 | E157: -5.633100285e-05 | F157: 2.69551187e-06 | G157: 2.69551187e-06 | H157: -1.905586306e-10 | I157: -1.905586306e-10 | J157: 0.1857656064 | AH157: 0.1288357184
A158: 1490 | B158: 0.2044450044 | C158: -3.457061715e-05 | E158: -3.457061715e-05 | F158: 1.653647236e-06 | G158: 1.653647236e-06 | H158: 8.070992322e-11 | I158: 8.070992322e-11 | J158: 0.1927712906 | AH158: 0.1225527095
A159: 1500 | B159: 0.2042124239 | C159: -2.325805814e-05 | E159: -2.325805814e-05 | F159: 6.198535938e-07 | G159: 6.198535938e-07 | H159: 3.588815821e-10 | I159: 3.588815821e-10 | J159: 0.1980675052 | AH159: 0.1165759782
A160: 1510 | B160: 0.2039906884 | C160: -2.217354527e-05 | E160: -2.217354527e-05 | F160: -3.780518899e-07 | G160: -3.780518899e-07 | H160: 6.30086943e-10 | I160: 6.30086943e-10 | J160: 0.2014932385 | AH160: 0.1108906432
A161: 1520 | B161: 0.2036824974 | C161: -3.081909594e-05 | E161: -3.081909594e-05 | F161: -1.312948679e-06 | G161: -1.312948679e-06 | H161: 8.805933263e-10 | I161: 8.805933263e-10 | J161: 0.2029426613 | AH161: 0.1054825283
A162: 1530 | B162: 0.2031981723 | C162: -4.843251886e-05 | E162: -4.843251886e-05 | F162: -2.159786136e-06 | G162: -2.159786136e-06 | H162: 1.097790946e-09 | I162: 1.097790946e-09 | J162: 0.2023701278 | AH162: 0.1003381356
A163: 1540 | B163: 0.2024580241 | C163: -7.401481866e-05 | E163: -7.401481866e-05 | F163: -2.896844498e-06 | G163: -2.896844498e-06 | H163: 1.271084554e-09 | I163: 1.271084554e-09 | J163: 0.1997922107 | AH163: 0.09544461699
A164: 1550 | B164: 0.20139433 | C164: -0.0001063694088 | E164: -0.0001063694088 | F164: -3.506794405e-06 | G164: -3.506794405e-06 | H164: 1.392613773e-09 | I164: 1.392613773e-09 | J164: 0.1952866164 | AH164: 0.09078974557
A165: 1560 | B165: 0.1999528229 | C165: -0.0001441507068 | E165: -0.0001441507068 | F165: -3.977482935e-06 | G165: -3.977482935e-06 | H165: 1.457742493e-09 | I165: 1.457742493e-09 | J165: 0.1889880538 | AH165: 0.08636188752
A166: 1570 | B166: 0.1980936322 | C166: -0.0001859190675 | E166: -0.0001859190675 | F166: -4.302397215e-06 | G166: -4.302397215e-06 | H166: 1.465281054e-09 | I166: 1.465281054e-09 | J166: 0.1810813477 | AH166: 0.08214997433
A167: 1580 | B167: 0.1957916457 | C167: -0.0002301986511 | E167: -0.0002301986511 | F167: -4.48078339e-06 | G167: -4.48078339e-06 | H167: 1.417431517e-09 | I167: 1.417431517e-09 | J167: 0.1717922729 | AH167: 0.07814347606
A168: 1590 | B168: 0.1930362984 | C168: -0.0002755347353 | E168: -0.0002755347353 | F168: -4.517426413e-06 | G168: -4.517426413e-06 | H168: 1.319473179e-09 | I168: 1.319473179e-09 | J168: 0.1613767355 | AH168: 0.07433237559
A169: 1600 | B169: 0.1898308266 | C169: -0.0003205471793 | E169: -0.0003205471793 | F169: -4.422122118e-06 | G169: -4.422122118e-06 | H169: 1.179229286e-09 | I169: 1.179229286e-09 | J169: 0.1501090121 | AH169: 0.07070714387
A170: 1610 | B170: 0.1861910548 | C170: -0.0003639771777 | E170: -0.0003639771777 | F170: -4.208894895e-06 | G170: -4.208894895e-06 | H170: 1.006374283e-09 | I170: 1.006374283e-09 | J170: 0.1382697925 | AH170: 0.06725871633
A171: 1620 | B171: 0.182143804 | C171: -0.0004047250772 | E171: -0.0004047250772 | F171: -3.895030243e-06 | G171: -3.895030243e-06 | H171: 8.116519779e-10 | I171: 8.116519779e-10 | J171: 0.1261347365 | AH171: 0.06397847033
A172: 1630 | B172: 0.1777250262 | C172: -0.0004418777825 | E172: -0.0004418777825 | F172: -3.500000393e-06 | G172: -3.500000393e-06 | H172: 6.060780074e-10 | I172: 6.060780074e-10 | J172: 0.1139641752 | AH172: 0.06085820367
A173: 1640 | B173: 0.1729777754 | C173: -0.0004747250851 | E173: -0.0004747250851 | F173: -3.044362743e-06 | G173: -3.044362743e-06 | H173: 4.001952054e-10 | I173: 4.001952054e-10 | J173: 0.1019944558 | AH173: 0.05789011414
A174: 1650 | B174: 0.167950125 | C174: -0.0005027650374 | E174: -0.0005027650374 | F174: -2.548705572e-06 | G174: -2.548705572e-06 | H174: 2.034391065e-10 | I174: 2.034391065e-10 | J174: 0.09043127975 | AH174: 0.05506678001
A175: 1660 | B175: 0.162693133 | C175: -0.0005256991965 | E175: -0.0005256991965 | F175: -2.032704491e-06 | G175: -2.032704491e-06 | H175: 2.365474139e-11 | I175: 2.365474139e-11 | J175: 0.07944521171 | AH175: 0.05238114148
A176: 1670 | B176: 0.1572589417 | C176: -0.0005434191272 | E176: -0.0005434191272 | F176: -1.514337935e-06 | G176: -1.514337935e-06 | H176: -1.332126408e-10 | I176: -1.332126408e-10 | J176: 0.06916937697 | AH176: 0.04982648308
A177: 1680 | B177: 0.1516990822 | C177: -0.0005559859552 | E177: -0.0005559859552 | F177: -1.009292643e-06 | G177: -1.009292643e-06 | H177: -2.632489399e-10 | I177: -2.632489399e-10 | J177: 0.05969921577 | AH177: 0.04739641683
A178: 1690 | B178: 0.1460630324 | C178: -0.0005636049801 | E178: -0.0005636049801 | F178: -5.305722458e-07 | G178: -5.305722458e-07 | H178: -3.645374032e-10 | I178: -3.645374032e-10 | J178: 0.05109404468 | AH178: 0.04508486631
A179: 1700 | B179: 0.1403970584 | C179: -0.0005665974001 | E179: -0.0005665974001 | F179: -8.830558853e-08 | G179: -8.830558853e-08 | H179: -4.369856186e-10 | I179: -4.369856186e-10 | J179: 0.04338008958 | AH179: 0.04288605143
A180: 1710 | B180: 0.1347433475 | C180: -0.0005653710918 | E180: -0.0005653710918 | F180: 3.102625069e-07 | G180: 3.102625069e-07 | H180: -4.820480397e-10 | I180: -4.820480397e-10 | J180: 0.03655460595 | AH180: 0.04079447402
A181: 1720 | B181: 0.129139426 | C181: -0.00056039215 | E181: -0.00056039215 | F181: 6.606257983e-07 | G181: 6.606257983e-07 | H181: -5.023828004e-10 | I181: -5.023828004e-10 | J181: 0.03059068968 | AH181: 0.03880490405
A182: 1730 | B182: 0.1236178402 | C182: -0.0005521585759 | E182: -0.0005521585759 | F182: 9.607508097e-07 | G182: 9.607508097e-07 | H182: -5.014811562e-10 | I182: -5.014811562e-10 | J182: 0.02544239945 | AH182: 0.03691236655
A183: 1740 | B183: 0.1182060689 | C183: -0.0005411771338 | E183: -0.0005411771338 | F183: 1.210727705e-06 | G183: 1.210727705e-06 | H183: -4.833037905e-10 | I183: -4.833037905e-10 | J183: 0.02104985536 | AH183: 0.03511212919
A184: 1750 | B184: 0.1129266287 | C184: -0.0005279440218 | E184: -0.0005279440218 | F184: 1.412374222e-06 | G184: 1.412374222e-06 | H184: -4.519515099e-10 | I184: -4.519515099e-10 | J184: 0.0173440385 | AH184: 0.03339969044
A185: 1760 | B185: 0.1077973322 | C185: -0.0005129296493 | E185: -0.0005129296493 | F185: 1.568825588e-06 | G185: 1.568825588e-06 | H185: -4.1138971e-10 | I185: -4.1138971e-10 | J185: 0.01425108582 | AH185: 0.03177076831
A186: 1770 | B186: 0.1028316571 | C186: -0.00049656751 | E186: -0.00049656751 | F186: 1.684137983e-06 | G186: 1.684137983e-06 | H186: -3.652375344e-10 | I186: -3.652375344e-10 | J186: 0.01169594606 | AH186: 0.03022128966
A187: 1780 | B187: 0.09803918817 | C187: -0.0004792468897 | E187: -0.0004792468897 | F187: 1.762926624e-06 | G187: 1.762926624e-06 | H187: -3.16624829e-10 | I187: -3.16624829e-10 | J187: 0.009605329559 | AH187: 0.02874737997
A188: 1790 | B188: 0.0934260984 | C188: -0.0004613089775 | E188: -0.0004613089775 | F188: 1.810052782e-06 | G188: 1.810052782e-06 | H188: -2.681134944e-10 | I188: -2.681134944e-10 | J188: 0.007909942822 | AH188: 0.02734535371
A189: 1800 | B189: 0.08899564006 | C189: -0.0004430458341 | E189: -0.0004430458341 | F189: 1.830367591e-06 | G189: 1.830367591e-06 | H189: -2.216750526e-10 | I189: -2.216750526e-10 | J189: 0.006546045619 | AH189: 0.02601170507
A190: 1810 | B190: 0.0847486238 | C190: -0.0004247016257 | E190: -0.0004247016257 | F190: 1.828514895e-06 | G190: 1.828514895e-06 | H190: -1.787132922e-10 | I190: -1.787132922e-10 | J190: 0.005456401707 | AH190: 0.02474309924
A191: 1820 | B191: 0.08068386844 | C191: -0.0004064755362 | E191: -0.0004064755362 | F191: 1.808790869e-06 | G191: 1.808790869e-06 | H191: -1.40119625e-10 | I191: -1.40119625e-10 | J191: 0.004590715464 | AH191: 0.02353636405
A192: 1830 | B192: 0.07679861036 | C192: -0.0003885258083 | E192: -0.0003885258083 | F192: 1.775054881e-06 | G192: 1.775054881e-06 | H192: -1.063489999e-10 | I192: -1.063489999e-10 | J192: 0.003905656204 | AH192: 0.02238848203
A193: 1840 | B193: 0.07308886597 | C193: -0.0003709744385 | E193: -0.0003709744385 | F193: 1.730683993e-06 | G193: 1.730683993e-06 | H193: -7.750550801e-11 | I193: -7.750550801e-11 | J193: 0.003364572119 | AH193: 0.02129658288
A194: 1850 | B194: 0.06954974469 | C194: -0.0003539121285 | E194: -0.0003539121285 | F194: 1.678562554e-06 | G194: 1.678562554e-06 | H194: -5.342877751e-11 | I194: -5.342877751e-11 | J194: 0.002936988761 | AH194: 0.02025793628
A195: 1860 | B195: 0.06617571281 | C195: -0.0003374031874 | E195: -0.0003374031874 | F195: 1.621098238e-06 | G195: 1.621098238e-06 | H195: -3.377452781e-11 | I195: -3.377452781e-11 | J195: 0.002597975262 | AH195: 0.01926994507
A196: 1870 | B196: 0.06296081117 | C196: -0.0003214901637 | E196: -0.0003214901637 | F196: 1.560256468e-06 | G196: 1.560256468e-06 | H196: -1.808492441e-11 | I196: -1.808492441e-11 | J196: 0.002327447061 | AH196: 0.01833013875
A197: 1880 | B197: 0.05989883059 | C197: -0.0003061980581 | E197: -0.0003061980581 | F197: 1.497606207e-06 | G197: 1.497606207e-06 | H197: -5.846419765e-12 | I197: -5.846419765e-12 | J197: 0.002109458769 | AH197: 0.01743616734
A198: 1890 | B198: 0.0569834502 | C198: -0.0002915380396 | E198: -0.0002915380396 | F198: 1.434371303e-06 | G198: 1.434371303e-06 | H198: 3.465554817e-12 | I198: 3.465554817e-12 | J198: 0.001931526181 | AH198: 0.01658579542
A199: 1900 | B199: 0.05420834388 | C199: -0.000277510632 | E199: -0.000277510632 | F199: 1.371482954e-06 | G199: 1.371482954e-06 | H199: 1.03544286e-11 | I199: 1.03544286e-11 | J199: 0.001784003392 | AH199: 0.01577689663
A200: 1910 | B200: 0.05156726007 | C200: -0.0002641083805 | E200: -0.0002641083805 | F200: 1.309630049e-06 | G200: 1.309630049e-06 | H200: 1.52814163e-11 | I200: 1.52814163e-11 | J200: 0.001659529999 | AH200: 0.01500744831
... 113 more rows
